{"text_format":"1","workbook":"xlsx","n_sheets":13,"sheets":["1. Forside","2. Samlet prisloft","3. Driftsomkostninger","4. Historiske investeringer","5. Gennemførte investeringer","6. Korrektion investeringer","7. Planlagte investeringer","8. 1-1 omkostninger","9. Miljø- og servicemål","10. Klimatilpasning","11. Nettofinansielle poster","12. Over- eller underdækning","13. Kontrol med indtægtsrammen"],"not_rendered":{"charts":0,"images":0,"macros":1,"external_links":0,"defined_names":0,"comments":0,"pivot_tables":0},"unopened":[],"bounds":{"document_bytes":16777216,"sheet_cells":100000,"rows_first":2000,"rows_last":500,"rows_between":2000,"halvings":0,"cell_chars":16384,"cell_head_chars":4096},"cells_cut":0,"cells_raw":0,"read":"whole","date_system":"1900"}

{"sheet":"1. Forside","index":0,"n_rows":27,"n_cols":4,"rows_kept":27,"cut":false,"hidden":false,"merged":[[26,3,26,5],[25,3,25,5],[24,3,24,5],[23,3,23,5],[22,3,22,5],[21,3,21,5],[20,3,20,5],[19,3,19,5],[18,3,18,5],[7,3,7,5],[12,3,12,5],[15,3,15,5],[16,3,16,5],[17,3,17,5]]}
["Varde Kloak og Spildevand A/S"]
[]
[]
[]
[]
[]
[]
[null,null,null,"Bilag A"]
[]
[]
[]
[]
[null,null,null,"Indholdsfortegnelse"]
[]
[]
[null,null,"Fane nr. 2","Samlet prisloft "]
[null,null,"Fane nr. 3","Driftsomkostninger"]
[null,null,"Fane nr. 4","Historiske investeringer "]
[null,null,"Fane nr. 5","Gennemførte investeringer"]
[null,null,"Fane nr. 6","Korrektion investeringer"]
[null,null,"Fane nr. 7","Planlagte investeringer"]
[null,null,"Fane nr. 8","1:1 omkostninger"]
[null,null,"Fane nr. 9","Miljø- og servicemål"]
[null,null,"Fane nr. 10","Klimatilpasning"]
[null,null,"Fane nr. 11","Nettofinansielle poster"]
[null,null,"Fane nr. 12","Over- eller underdækning"]
[null,null,"Fane nr. 13","Kontrol med indtægtsrammen og oversigt over ekstraordinære effektiviseringsgevinster"]

{"sheet":"2. Samlet prisloft","index":1,"n_rows":38,"n_cols":6,"rows_kept":38,"cut":false,"hidden":false,"merged":[[3,1,3,5]]}
[{"$f":"'1. Forside'!A1","v":"Varde Kloak og Spildevand A/S"}]
[]
[]
[null,"Fane 2. Samlet prisloft for 2015"]
[]
[null,"Driftsomkostninger"]
[null,"Driftsomkostninger i prisloftet for 2014",{"$f":"'3. Driftsomkostninger'!C19","v":31987103.718582481},"kr."]
[null,"Bortfald af væsentlige omkostninger",{"$f":"-'3. Driftsomkostninger'!C24","v":0},"kr."]
[null,"Korrektion for prisudviklingen 2014-2015",{"$f":"'3. Driftsomkostninger'!C30","v":25589.682974865987},"kr."]
[null,"Forhøjelse til effektivt niveau iht. benchmarkingen",{"$f":"'3. Driftsomkostninger'!C36","v":0},"kr."]
[null,"Korrektion for generelt effektiviseringskrav",{"$f":"-'3. Driftsomkostninger'!C42","v":-140743.25636176293},"kr."]
[null,"Korrektion for individuelt effektiviseringskrav",{"$f":"-'3. Driftsomkostninger'!C51","v":-1599355.1859291242},"kr."]
[null,"Driftsomkostninger i alt",{"$f":"SUM(C7:C12)","v":30272594.959266461},"kr.",{"$f":"C13","v":30272594.959266461}," kr."]
[null,"Investeringer"]
[null,"Tillæg for historiske investeringer",{"$f":"'4. Historiske investeringer'!C9","v":44070635.134192199},"kr."]
[null,"Tillæg for gennemførte investeringer i 2011-2013",{"$f":"'5. Gennemførte investeringer'!F44","v":4577177.8433333328},"kr."]
[null,"Korrektion af tillæg for planlagte investeringer vedrørende 2013  ",{"$f":"'6. Korrektion investeringer'!C10","v":677082.98666666681},"kr."]
[null,"Tillæg for planlagte investeringer i 2014 og 2015",{"$f":"'7. Planlagte investeringer'!F15","v":1477500},"kr."]
[null,"Investeringstillæg i alt",{"$f":"SUM(C15:C18)","v":50802395.964192197},"kr.",{"$f":"C19","v":50802395.964192197}," kr."]
[null,"Øvrige omkostninger mv."]
[null,"Tillæg for 1:1 omkostninger i 2015",{"$f":"'8. 1-1 omkostninger'!C13","v":2852000},"kr."]
[null,"Tillæg vedr. revisorerklæringer og DANVA/FVD-kontingent",{"$f":"'8. 1-1 omkostninger'!C21","v":135000},"kr."]
[null,"Korrektion ift. faktiske 1:1 omkostninger i 2013",{"$f":"'8. 1-1 omkostninger'!C27","v":8627652},"kr."]
[null,"Tillæg for driftsomkostninger til miljø- og servicemål i 2015",{"$f":"'9. Miljø- og servicemål'!C9","v":250000},"kr."]
[null,"Korrektion ift. faktiske driftsomkostninger til miljø- og servicemål i 2013",{"$f":"'9. Miljø- og servicemål'!C16","v":0},"kr."]
[null,"Tillæg for driftsomkostninger til medfinansiering af klimatilpasningsprojekter i 2015",{"$f":"'10. Klimatilpasning'!C9","v":0},"kr."]
[null,"Korrektion ift. faktiske omkostninger til medfinansiering af klimatilpasningsprojekter i 2013",{"$f":"'10. Klimatilpasning'!C16","v":0},"kr."]
[null,"Tillæg/fradrag for nettofinansielle poster i 2015",{"$f":"'11. Nettofinansielle poster'!C9","v":235095},"kr."]
[null,"Korrektion ift. faktiske nettofinansielle poster i 2013",{"$f":"'11. Nettofinansielle poster'!C16","v":452441},"kr."]
[null,"Øvrige omkostninger mv. i alt",{"$f":"SUM(C21:C29)","v":12552188},"kr.",{"$f":"C30","v":12552188}," kr."]
[null,"Historisk over- eller underdækning"]
[null,"Tillæg/fradrag for over- eller underdækning til og med 2010",{"$f":"'12. Over- eller underdækning'!C11","v":-8077487.7513227509},"kr.",{"$f":"C32","v":-8077487.7513227509}," kr."]
[null,"Korrektion i forhold til tidligere indtægtsramme "]
[null,"Korrektion for overholdelse af indtægtsramme i prisloft 2013",{"$f":"'13. Kontrol med indtægtsrammen'!E27","v":14312636.440736115},"kr.",{"$f":"C34","v":14312636.440736115}," kr."]
[null,"Samlet prisloft"]
[null,"Indtægtsramme i 2015 ",null,null,{"$f":"SUM(E13:E34)","v":99862327.612872034}," kr."]
[null,"Debiteret vandmængde i 2013",null,null,2219474," m3"]
[null,"Prisloft 2015",null,null,{"$f":"E36/E37","v":44.993691123604975}," kr./m3"]

{"sheet":"3. Driftsomkostninger","index":2,"n_rows":51,"n_cols":4,"rows_kept":51,"cut":false,"hidden":false,"merged":[[3,1,3,3]]}
[{"$f":"'1. Forside'!A1","v":"Varde Kloak og Spildevand A/S"}]
[]
[]
[null,"Fane 3. Driftsomkostninger "]
[]
[null,"Driftsomkostningerne i prisloftet for 2014"]
[null,"Korrigerede driftsomkostninger i prisloftet for 2013 (DOiPL 2013)",31510001.751256716,"kr."]
[null,"Tillæg i henhold til § 8, stk. 2, pkt. 1",1515300,"kr."]
[null,"Prisfremskrivning 1,5 pct.",{"$f":"0.015*SUM(C7:C8)","v":495379.52626885072},"kr."]
[null,"Generelt effektiviseringskrav (0 pct.)",0,"kr."]
[null,"Individuelt effektiviseringskrav ",-1452642,"kr."]
[null,"Driftsomkostningerne i prisloftet for 2014 (DOiPL 2014)",{"$f":"SUM(C7:C11)","v":32068039.277525567},"kr."]
[]
[]
[null,"Forskel i § 8, stk. 2, pkt. 1 - tillæg"]
[null,"Godkendt tillæg i PL2014 prisfremskrevet til 2014-niveau",1538029.3364043296,"kr."]
[null,"Godkendt tillæg i PL2015 prisfremskrevet til 2014-niveau",1457093.7774612447,"kr."]
[null,"Forskel",{"$f":"C17-C16","v":-80935.558943084907},"kr."]
[null,"Korrigerede driftsomkostninger i prisloftet for 2014",{"$f":"C12+C18","v":31987103.718582481},"kr."]
[]
[]
[null,"Korrektion for forventet bortfald af væsentlige omkostninger"]
[null,"Selskabets indberettede bortfald af væsentlige omkostninger inden 2015",0,"kr."]
[null,"Korrektion for forventet bortfald ",{"$f":"SUM(C23:C23)","v":0},"kr."]
[]
[]
[null,"Korrektion for prisudviklingen fra 2014-2015"]
[null,"Driftsomkostningerne i prisloftet for 2014",{"$f":"C19-C24","v":31987103.718582481},"kr."]
[null,"Prisudvikling 2014 - 2015 ",0.08,"pct."]
[null,"Korrektion for prisudvikling",{"$f":"C28*(C29/100)","v":25589.682974865987},"kr."]
[]
[]
[null,"Eventuel forhøjelse til effektivt niveau iht. benchmarkingen"]
[null,"Selskabets effektive driftsomkostninger iht. benchmarkingen",20075106,"kr."]
[null,"Selskabets pristalskorrigerede driftsomkostninger i 2015-niveau",{"$f":"C28+C30","v":32012693.401557349},"kr."]
[null,"Eventuel forhøjelse til effektivt niveau",{"$f":"IF(C35>C34,0,C34-C35)","v":0},"kr."]
[]
[]
[null,"Korrektion for generelt effektiviseringskrav"]
[null,"Driftsomkostningerne i prisloftet for 2014",{"$f":"C28","v":31987103.718582481},"kr. "]
[null,"Generelt effektiviseringskrav ",0.44,"pct."]
[null,"Endeligt generelt effektiviseringskrav",{"$f":"C40*(C41/100)","v":140743.25636176293},"kr. "]
[]
[]
[null,"Korrektion for individuelt effektiviseringskrav"]
[null,"Rå effektiviseringspotentiale",11911997,"kr."]
[null,"Effektiviseringspotentiale efter eventuel korrektion for særlige forhold",11911997,"kr."]
[null,"Effektiviseringspotentiale efter forsigtighedshensyn",7680103,"kr."]
[null,"Effektiviseringspotentiale efter eventuel korrektion for sammensætning af signifikante costdrivere",7680103,"kr. "]
[null,"Umiddelbart effektiviseringskrav",{"$f":"C49/4","v":1920025.75},"kr."]
[null,"Endeligt individuelt effektiviseringskrav",{"$f":"IF(C50>0.05*C28,0.05*C28,IF(C50<0.01*C28,0,C50))","v":1599355.1859291242},"kr. "]

{"sheet":"4. Historiske investeringer","index":3,"n_rows":9,"n_cols":4,"rows_kept":9,"cut":false,"hidden":false,"merged":[[3,1,3,2]]}
[{"$f":"'3. Driftsomkostninger'!A1","v":"Varde Kloak og Spildevand A/S"}]
[]
[]
[null,"Fane 4. Historiske investeringer "]
[]
[null,"Tillæg for historiske investeringer "]
[null,"Værdi af selskabets materielle anlægsaktiver pr. 1. januar 2010",1936542633.6934831,"kr."]
[null,"Den årlige standardafskrivning på de materielle anlægsaktiver iht. POLKA",44070635.134192199,"kr."]
[null,"Tillæg i alt i 2015",{"$f":"C8","v":44070635.134192199},"kr."]

{"sheet":"5. Gennemførte investeringer","index":4,"n_rows":44,"n_cols":7,"rows_kept":44,"cut":false,"hidden":false,"merged":[[3,1,3,5],[6,5,6,6]]}
[{"$f":"'4. Historiske investeringer'!A1","v":"Varde Kloak og Spildevand A/S"}]
[]
[]
[null,"Fane 5. Gennemførte investeringer i 2010 - 2013 "]
[]
[null,"Tillæg for gennemførte investeringer i 2013"]
[null," Beskrivelse af investeringen   ","Årstal ","Std. levetid (år)   "," Anskaffelses-pris (kr.)","Afskrivning "]
[null,"Arbejdsplads",2013,5,8737,{"$f":"E8/D8","v":1747.4},"kr."]
[null,"Beluftningstanke, Mek/EL",2013,20,188272,{"$f":"E9/D9","v":9413.6},"kr."]
[null,"Beluftningstanke, SRO",2013,10,754327,75432.7,"kr."]
[null,"Brønde",2013,75,13521561,180287.48,"kr."]
[null,"Efterklaringstanke, Mek/El",2013,20,19398,969.9,"kr."]
[null,"Forsinkelsesbassiner, lukkede med automatisk rensning og SRO Miljøklasse A (1.000-3.000 m3) - Konstruktioner",2013,75,8363998,111519.97333333333,"kr."]
[null,"Forsinkelsesbassiner, lukkede uden automatisk rensning og SRO Miljøklasse B (mindre end 1.000 m3)",2013,50,1130804,22616.080000000002,"kr."]
[null,"Indløb med riste, Mek/EL",2013,20,565245,28262.25,"kr."]
[null,"Indløb med riste, SRO",2013,10,33726,3372.6,"kr."]
[null,"Indløb-/udløbsarrangement",2013,75,93569,1247.5866666666666,"kr."]
[null,"Kælder",2013,75,591978,7893.04,"kr."]
[null,"Ledningsnet = Ø 200 mm",2013,75,7617854,101571.38666666667,"kr."]
[null,"Pumpeinstallation Miljøklasse A (100-300 l/s) - Mek/EL",2013,20,45000,2250,"kr."]
[null,"Pumpestationer i brønde (< 6,25 m2), Konstruktioner",2013,50,2795773,55915.46,"kr."]
[null,"Pumpestationer i brønde (< 6,25 m2), Mek/EL",2013,20,2311847,115592.35,"kr."]
[null,"Pumpestationer i brønde (< 6,25 m2), SRO",2013,10,461163,46116.3,"kr."]
[null,"Pumpestationer i underjordiske bygværker (",2013,20,200000,10000,"kr."]
[null,"Pumpestationer m. overbygning (< 20 m2), Konstruktioner",2013,50,711256,14225.12,"kr."]
[null,"Pumpestationer m. overbygning (< 20 m2), Mek/EL",2013,20,90977,4548.8500000000004,"kr."]
[null,"Pumpestationer m. overbygning (< 20 m2), SRO",2013,10,22744,2274.4,"kr."]
[null,"Sand- og fedtfang, Mek/EL",2013,20,29865,1493.25,"kr."]
[null,"Slutdisponering, slam - højteknologisk (slamtørring), SRO",2013,10,37230,3723,"kr."]
[null,"Stik",2013,75,116412,1552.16,"kr."]
[null,"Strømpeforing = Ø 200 mm",2013,50,343793,6875.86,"kr."]
[null,"Strømpeforing Ø 200 mm < Ledningsnet = Ø 500 mm",2013,50,113101,2262.02,"kr."]
[null,"Tryksatte minipumpestationer (husstandssystemer)",2013,30,474270,15809,"kr."]
[null,"Installationer \"mekaniske riste og SRO\" Miljøklasse A. (7-20 m2) - Mek/EL",2013,20,64350,3217.5,"kr."]
[null,"Installationer \"mekaniske riste og SRO\" Miljøklasse A. (7-20 m2) - SRO",2013,10,28581,2858.1,"kr."]
[null,"Pumpeinstallation Miljøklasse A (100-300 l/s) - SRO",2013,10,510829,51082.9,"kr."]
[null,"Efterklaringstanke, SRO",2013,10,316228,31622.799999999999,"kr."]
[null,"Ø 200 mm < Ledningsnet = Ø 500 mm",2013,75,2941047,39213.96,"kr."]
[null,"Ø 500 mm < Ledningsnet = Ø 800 mm",2013,75,5907546,78767.28,"kr."]
[null,"Ø 800 mm < Ledningsnet = Ø 1000 mm",2013,75,621965,8292.8666666666668,"kr."]
[null,"Andre bygninger (tekniske installationer, målere mv.)",2013,75,413574,5514.32,"kr."]
[null,"Tillæg for 2013 ",null,null,null,{"$f":"SUM(F8:F41)","v":1047541.4933333334},"kr."]
[null,"Tillæg for 2010 - 2012",null,null,null,3529636.3499999992,"kr."]
[null,"Samlet tillæg for gennemførte investeringer",null,null,null,{"$f":"F42+F43","v":4577177.8433333328},"kr."]

{"sheet":"6. Korrektion investeringer","index":5,"n_rows":10,"n_cols":4,"rows_kept":10,"cut":false,"hidden":false,"merged":[[3,1,3,3]]}
[{"$f":"'5. Gennemførte investeringer'!A1","v":"Varde Kloak og Spildevand A/S"}]
[]
[]
[null,"Fane 6. Korrektion af tillæg for planlagte investeringer"]
[]
[null,"Korrektion af tillæg for planlagte investeringer vedr. 2013"]
[null,"Tillæg for planlagte investeringer i 2013 i prisloft 2013",640000,"kr."]
[null,"Tillæg for planlagte investeringer i 2013 i prisloft 2014",778000,"kr."]
[null,"Selskabets faktiske afskrivninger på gennemførte investeringer i 2013",{"$f":"'5. Gennemførte investeringer'!F42","v":1047541.4933333334},"kr."]
[null,"Korrektion af tillæg for planlagte investeringer vedr. 2013",{"$f":"C9-C7+C9-C8","v":677082.98666666681},"kr."]

{"sheet":"7. Planlagte investeringer","index":6,"n_rows":15,"n_cols":7,"rows_kept":15,"cut":false,"hidden":false,"merged":[[6,5,6,6],[3,1,3,6]]}
[{"$f":"'6. Korrektion investeringer'!A1","v":"Varde Kloak og Spildevand A/S"}]
[]
[]
[null,"Fane 7. Planlagte investeringer "]
[]
[null,"Tillæg for planlagte investeringer i 2014 og 2015"]
[null,"Beskrivelse af investeringen   ","Årstal ","Std. levetid (år)   ","Anskaffelses-pris (kr.)   ","Afskrivning"]
[null,"Ledningsnet = Ø 200 mm",2014,75,41000000,{"$f":"E8/D8","v":546666.66666666663},"kr."]
[null,"Indløb med riste, Konstruktioner",2014,60,5250000,{"$f":"E9/D9","v":87500},"kr."]
[null,"Jordbassin Klasse B",2014,50,6100000,{"$f":"E10/D10","v":122000},"kr."]
[null,"Indløb med riste, SRO",2014,10,1000000,100000,"kr."]
[null,"Ledningsnet = Ø 200 mm",2015,75,46600000,621333.33333333337,"kr."]
[null,"Tillæg for 2014",null,null,null,{"$f":"SUMIF(C8:C12,\"2014\",F8:F12)","v":856166.66666666663},"kr."]
[null,"Tillæg for 2015",null,null,null,{"$f":"SUMIF(C8:C12,\"2015\",F8:F12)","v":621333.33333333337},"kr."]
[null,"Tillæg i alt",null,null,null,{"$f":"F13+F14","v":1477500},"kr."]

{"sheet":"8. 1-1 omkostninger","index":7,"n_rows":27,"n_cols":4,"rows_kept":27,"cut":false,"hidden":false,"merged":[[3,1,3,3],[17,1,17,3],[23,1,23,3]]}
[{"$f":"'7. Planlagte investeringer'!A1","v":"Varde Kloak og Spildevand A/S"}]
[]
[]
[null,"Fane 8. 1:1 omkostninger"]
[]
[null,"Tillæg for budgetterede 1:1 omkostninger i 2015"]
[null,"Betaling til Forsyningssekretariatet",33000,"kr."]
[null,"Spildevandsafgift",1259000,"kr."]
[null,"Køb af varer og tjenesteydelser hos et andet prisloftreguleret vandselskab",500000,"kr."]
[null,"Selskabsskat",1000000,"kr."]
[null,"Tjenestemandspensioner",20000,"kr."]
[null,"Ejendomsskatter",40000,"kr."]
[null,"Tillæg i alt ",{"$f":"SUM(C7:C12)","v":2852000},"kr."]
[]
[]
[]
[]
[null,"Tillæg for budgetterede nødvendige udgifter til revisorerklæringer samt ordinært medlemskab af DANVA og FVD i 2015"]
[null,"Betaling for ordinært medlemskab af DANVA/FVD",110000,"kr."]
[null,"Betaling for revisorerklæringer",25000,"kr."]
[null,"Tillæg i alt ",{"$f":"SUM(C19:C20)","v":135000},"kr."]
[]
[]
[null,"Korrektion af tillæg for faktiske 1:1 omkostninger (inkl. revisorerklæringer og ordinært medlemskab af DANVA/FVD) i 2013"]
[null,"Selskabets faktiske 1:1 omkostninger mv. i 2013, jf. reguleringsregnskabet",11333583,"kr."]
[null,"Tillæg for budgetterede 1:1 omkostninger mv. i prisloft 2013",2705931,"kr."]
[null,"Korrektion af tillæg for budgetterede 1:1 omkostninger mv. i 2013",{"$f":"C25-C26","v":8627652},"kr."]

{"sheet":"9. Miljø- og servicemål","index":8,"n_rows":16,"n_cols":4,"rows_kept":16,"cut":false,"hidden":false,"merged":[[3,1,3,3]]}
[{"$f":"'8. 1-1 omkostninger'!A1","v":"Varde Kloak og Spildevand A/S"}]
[]
[]
[null,"Fane 9. Driftsomkostninger til miljø- og servicemål "]
[]
[null,"Tillæg for budgetterede driftsomkostninger til miljø- og servicemål i 2015"]
[null,"Rottebekæmpelse",250000,"kr."]
[null,"Vedligeholdelse af bassiner",0,"kr."]
[null,"Tillæg i alt",{"$f":"SUM(C7:C8)","v":250000},"kr."]
[]
[]
[]
[null,"Korrektion af tillæg for faktiske driftsomkostninger til miljø- og servicemål i 2013"]
[null,"Selskabets faktiske driftsomkostninger til miljø- og servicemål i 2013, jf. reguleringsregnskabet",0,"kr."]
[null,"Tillæg for budgetterede driftsomkostninger til miljø- og servicemål i prisloft 2013",0,"kr."]
[null,"Korrektion af tillæg for budgetterede driftsomkostninger til miljø- og servicemål i 2013",{"$f":"C14-C15","v":0},"kr."]

{"sheet":"10. Klimatilpasning","index":9,"n_rows":16,"n_cols":4,"rows_kept":16,"cut":false,"hidden":false,"merged":[[3,1,3,3],[12,1,12,3],[6,1,6,3]]}
[{"$f":"'9. Miljø- og servicemål'!A1","v":"Varde Kloak og Spildevand A/S"}]
[]
[]
[null,"Fane 10. Medfinansiering af klimatilpasningsprojekter"]
[]
[]
[null,"Tillæg for budgetterede omkostninger til medfinansiering af klimatilpasningsprojekter i 2015"]
[null,null,0,"kr."]
[null,"Tillæg i alt",{"$f":" SUM(C8:C8)","v":0},"kr."]
[]
[]
[]
[null,"Korrektion af tillæg for faktiske omkostninger til medfinansiering af klimatilpasningsprojekter i 2013"]
[null,"Selskabets faktiske driftsomkostninger til klimatilpasningsprojekter i 2013, jf. reguleringsregnskabet",0,"kr."]
[null,"Tillæg for budgetterede driftsomkostninger til klimatilpasningsprojekter i prisloft 2013",0,"kr."]
[null,"Korrektion af tillæg for budgetterede omkostninger til klimatilpasningsprojekter i 2013",{"$f":"C14-C15","v":0},"kr."]

{"sheet":"11. Nettofinansielle poster","index":10,"n_rows":16,"n_cols":4,"rows_kept":16,"cut":false,"hidden":false,"merged":[[3,1,3,3]]}
[{"$f":"'10. Klimatilpasning'!A1","v":"Varde Kloak og Spildevand A/S"}]
[]
[]
[null,"Fane 11. Nettofinansielle poster"]
[]
[null,"Tillæg for budgetterede nettofinansielle poster i 2015"]
[null,"Budgetterede renteudgifter og gebyrer i 2015",286292,"kr."]
[null,"Budgetterede renteindtægter i 2015",51197,"kr."]
[null,"Tillæg/fradrag i alt",{"$f":"C7-C8","v":235095},"kr."]
[]
[]
[]
[null,"Korrektion af tillæg for faktiske nettofinansielle poster i 2013"]
[null,"Selskabets faktiske nettofinansielle poster i 2013, jf. reguleringsregnskabet",-347559,"kr."]
[null,"Tillæg for budgetterede nettofinansielle poster i prisloft 2013",-800000,"kr."]
[null,"Korrektion af tillæg for budgetterede nettofinansielle poster i 2013",{"$f":"C14-C15","v":452441},"kr."]

{"sheet":"12. Over- eller underdækning","index":11,"n_rows":11,"n_cols":4,"rows_kept":11,"cut":false,"hidden":false,"merged":[[3,1,3,3]]}
[{"$f":"'11. Nettofinansielle poster'!A1","v":"Varde Kloak og Spildevand A/S"}]
[]
[]
[null,"Fane 12. Over- eller underdækning til og med 2010"]
[]
[null,"Tillæg/fradrag for over- eller underdækning til og med 2010"]
[null,"Opgjort over- eller underdækning per 31. december 2010",-79708462,"kr."]
[null,"Heraf beløb indregnet i prislofterne for 2011 - 2014",-31243535.492063493,"kr."]
[null,"Endnu ikke indregnet over- eller underdækning",{"$f":"C7-C8","v":-48464926.507936507},"kr."]
[null,"Resterende indregningsperiode (fastsat i prisloftet for 2012)",6,"år"]
[null,"Tillæg/fradrag i alt",{"$f":"IF(C7=0,0,C9/C10)","v":-8077487.7513227509},"kr."]

{"sheet":"13. Kontrol med indtægtsrammen","index":12,"n_rows":38,"n_cols":12,"rows_kept":38,"cut":false,"hidden":false,"merged":[[3,1,3,5],[30,1,30,4],[5,1,5,5]]}
[{"$f":"'12. Over- eller underdækning'!A1","v":"Varde Kloak og Spildevand A/S"}]
[]
[]
[null,"Fane 13. Korrektion for overholdelse af indtægtsrammen i prisloftet for 2013"]
[]
[null,"Samlet opgørelse vedrørende overholdelse af indtægtsrammen i prisloftet for 2013"]
[null,"Indtægtsramme i prisloftet for 2013",null,null,86916391.352169082,"kr."]
[null,"Ikke anvendt likviditet vedrørende investeringer i 2013"]
[null,"Tillæg for historiske investeringer ",44226513.911432974,"kr."]
[null,"Tillæg for gennemførte investeringer i 2011",2378155,"kr."]
[null,"Korrektion af tillæg for planlagte investeringer i 2011",2434649,"kr."]
[null,"Tillæg for planlagte investeringer i 2012 og 2013",1272000,"kr."]
[null,"Indtægter fra tilslutningsbidrag",2347300,"kr."]
[null,"Indtægter fra salg af anlægsaktiver",0,"kr."]
[null,"Erstatninger vedr. anlægsaktiver mv.",0,"kr."]
[null,"Ekstraordinær effektiviseringsgevinst anvendt til investeringer",0,"kr."]
[null,"Udgifter til investeringer",-47426696,"kr."]
[null,"Ikke anvendt likviditet vedr. investeringer i alt",{"$f":"SUM(C9:C17)","v":5231921.911432974},"kr.",{"$f":"IF(C18<0,0,-C18)","v":-5231921.911432974},"kr."]
[null,"Ekstraordinære effektiviseringsgevinster anvendt til takstnedsættelse"]
[null,"Ekstraordinær effektiviseringsgevinst anvendt til takstnedsættelse",3616429,"kr.",{"$f":"-C20","v":-3616429},"kr."]
[null,"Korrektion af ikke opkrævet tillæg fra 2011 i prisloft 2013"]
[null,"Korrektion af ikke opkrævet tillæg fra 2011 i prisloft 2013",0,"kr.",{"$f":"-C22","v":0},"kr."]
[null,"Indtægter fra primære aktiviteter mv."]
[null,"Indtægter fra kubikmetertakster, faste takster, særbidrag, målergebyrer samt andre takster og gebyrer",63755404,"kr."]
[null,"Andre indtægter i prisloftåret, som selskabet har opnået i forbindelse med eller som følge af selskabets primære aktiviteter",0,"kr."]
[null,"Indtægter fra primære aktiviteter mv. i alt",{"$f":"SUM(C24:C25)","v":63755404},"kr.",{"$f":"-C26","v":-63755404},"kr."]
[null,"Tillæg/fradrag i prisloftet for 2015 i alt",null,null,{"$f":"E7+E18+E20+E22+E26","v":14312636.440736115},"kr."]
[]
[]
[]
[null,"Oversigt over ekstraordinære effektiviseringsgevinster"]
[]
[null,null,2012,null,2013,null,2014,null,2015,null,2016]
[null,"Indhentet ekstraordinær effektiviseringsgevinst",2982758,"kr.",633670.62925671786,"kr.",null,"kr.",null,"kr.",null,"kr."]
[null,"Gevinst anvendt til investeringer",0,"kr.",0,"kr.",null,"kr.",null,"kr.",null,"kr."]
[null,"Gevinst anvendt til takstnedsættelse",0,"kr.",3616429,"kr.",null,"kr.",null,"kr.",null,"kr."]
[null,"Korrektion for  effektiviseringsgevinst der ikke er anvendt inden 4 år",0,"kr.",0,"kr.",null,"kr.",null,"kr.",{"$f":"IF(C38>SUM(C35:I36),C38-SUM(E35:I36),0)*-1","v":0},"kr."]
[null,"Resterende gevinst",{"$f":"C34-C35-C36","v":2982758},"kr.",{"$f":"C38+E34-E35-E36","v":-0.3707432821393013},"kr.",{"$f":"E38+G34-G35-G36","v":-0.3707432821393013},"kr.",{"$f":"G38+I34-I35-I36","v":-0.3707432821393013},"kr.",{"$f":"K34-K35-K36+K37+I38","v":-0.3707432821393013},"kr."]